[Event "Niedersachsen-ch B 2024"]
[Site "Verden Aller"]
[Date "2024.01.05"]
[Round "4.1"]
[White "Silber, Stefanie"]
[Black "Rossberg, Jonathan"]
[Result "0-1"]
[ECO "A40"]
[WhiteElo "1581"]
[BlackElo "1818"]
[Annotator "NA RC"]
[PlyCount "80"]
[EventDate "2024.01.01"]
[EventType "swiss"]
[EventCountry "GER"]
[SourceTitle "playchess.com"]
[Source "ChessBase"]
[SourceQuality "1"]
[TimeControl "40/5400+30:1800+30"]

1. c4 {[%emt 0:01:26]} b6 {[%emt 0:00:15]} 2. d4 {[%emt 0:00:20]} e6 {[%emt 0:00:05]} 3. e4 {[%emt 0:00:09]} Bb7 {[%emt 0:00:04]} 4. Bd3 {[%emt 0:00:17]} f5 {[%emt 0:00:28]} 5. exf5 {[%emt 0:05:53]} Bxg2 {[%emt 0:00:48]} 6. Qh5+ {[%emt 0:00:07]} g6 {[%emt 0:00:08]} 7. fxg6 {[%emt 0:01:05]} Bg7 {[%emt 0:00:24]} 8. gxh7+ {[%emt 0:15:26]} Kf8 {[%emt 0:00:13]} 9. Nh3 {[%emt 0:39:37]} Nf6 {[%emt 0:06:48]} 10. Qh4 {[%emt 0:05:21]} Bxh1 {[%emt 0:02:08]} 11. Nf4 {[%emt 0:04:33]} Nc6 {[%emt 0:08:15]} 12. Ng6+ {[%emt 0:02:31]} Kf7 {[%emt 0:01:11]} 13. Bg5 {[%emt 0:13:25]} Rxh7 {[%emt 0:13:30]} 14. Qf4 {[%emt 0:03:03]} Rh3 {[%emt 0:06:12]} 15. Bc2 {[%emt 0:01:52]} d6 {[%emt 0:05:17]} 16. Nd2 {[%emt 0:00:29]} Nb4 {[%emt 0:04:30]} 17. O-O-O {[%emt 0:01:37]} Nxc2 {[%emt 0:03:48]} 18. Ne5+ {[%emt 0:00:38]} dxe5 {[%emt 0:01:39]} 19. dxe5 {[%emt 0:00:06]} Nd4 {[%emt 0:01:17]} 20. Re1 {[%emt 0:01:38]} Bf3 {[%emt 0:03:25]} 21. exf6 {[%emt 0:00:55]} Qd6 {[%emt 0:06:40]} 22. Qe3 {[%emt 0:00:07]} Bg2 {[%emt 0:01:39]} 23. f3 {[%emt 0:00:50]} Nf5 {[%emt 0:14:50]} 24. Qe4 {[%emt 0:00:33]} Bxf6 {[%emt 0:02:00]} 25. Bxf6 {[%emt 0:00:09]} Kxf6 {[%emt 0:02:10]} 26. Qxa8 {[%emt 0:00:13]} Qe7 {[%emt 0:10:32]} 27. Ne4+ {[%emt 0:00:13]} Kg7 {[%emt 0:00:14]} 28. Rg1 {[%emt 0:00:52]} Rxh2 {[%emt 0:00:25]} 29. Nf2 {[%emt 0:00:40]} Qg5+ {[%emt 0:01:03]} 30. Kb1 {[%emt 0:00:49]} Ne3 {[%emt 0:01:47]} 31. Qe4 {[%emt 0:00:34]} Qf5 {[%emt 0:00:28]} 32. Qxf5 {[%emt 0:00:29]} exf5 {[%emt 0:00:15]} 33. Kc1 {[%emt 0:00:30]} Kf6 {[%emt 0:00:39]} 34. b3 {[%emt 0:00:32]} Bxf3 {[%emt 0:00:19]} 35. Re1 {[%emt 0:00:29]} Rxf2 {[%emt 0:00:29]} 36. Rxe3 {[%emt 0:00:06]} Be4 {[%emt 0:00:08]} 37. a4 {[%emt 0:00:26]} Rf3 {[%emt 0:00:17]} 38. Re2 {[%emt 0:00:56]} Rxb3 {[%emt 0:00:15]} 39. Ra2 {[%emt 0:00:31]} Rc3+ {[%emt 0:00:32]} 40. Kd2 {[%emt 0:00:32]} Rc2+ {[%emt 0:00:20]} 0-1

[Event "Niedersachsen-ch B 2024"]
[Site "Verden Aller"]
[Date "2024.01.05"]
[Round "4.2"]
[White "Walther, Jonas"]
[Black "Richter, Silas"]
[Result "0-1"]
[ECO "B45"]
[WhiteElo "1744"]
[BlackElo "1614"]
[Annotator "NA RC"]
[PlyCount "23"]
[EventDate "2024.01.01"]
[EventType "swiss"]
[EventCountry "GER"]
[SourceTitle "playchess.com"]
[Source "ChessBase"]
[SourceQuality "1"]
[TimeControl "40/5400+30:1800+30"]

1. e4 {[%emt 0:00:04]} c5 {[%emt 0:00:03]} 2. Nf3 {[%emt 0:00:05]} e6 {[%emt 0:00:03]} 3. d4 {[%emt 0:08:43]} cxd4 {[%emt 0:00:04]} 4. Nxd4 {[%emt 0:00:01]} Nc6 {[%emt 0:00:14]} 5. Nc3 {[%emt 0:04:54]} Nf6 {[%emt 0:00:26]} 6. Bf4 {[%emt 0:04:15]} d6 {[%emt 0:02:09]} 7. Nxc6 {[%emt 0:01:49]} bxc6 {[%emt 0:00:06]} 8. e5 {[%emt 0:00:31]} Nd5 {[%emt 0:00:18]} 9. Nxd5 {[%emt 0:03:41]} cxd5 {[%emt 0:00:29]} 10. Bd3 {[%emt 0:08:27]} Rb8 {[%emt 0:03:25]} 11. b3 {[%emt 0:13:54]} Qc7 {[%emt 0:03:22]} 12. Qe2 {[%emt 0:01:33]} 0-1

[Event "Niedersachsen-ch B 2024"]
[Site "Verden Aller"]
[Date "2024.01.05"]
[Round "4.3"]
[White "Schoene, Finn"]
[Black "Junge, Julia Marie"]
[Result "1-0"]
[ECO "D00"]
[WhiteElo "1626"]
[BlackElo "1401"]
[Annotator "NA RC"]
[PlyCount "87"]
[EventDate "2024.01.01"]
[EventType "swiss"]
[EventCountry "GER"]
[SourceTitle "playchess.com"]
[Source "ChessBase"]
[SourceQuality "1"]
[TimeControl "40/5400+30:1800+30"]

1. d4 {[%emt 0:00:01]} d5 {[%emt 0:00:09]} 2. Nc3 {[%emt 0:00:01]} Nf6 {[%emt 0:00:18]} 3. Bf4 {[%emt 0:00:05]} a6 {[%emt 0:00:22]} 4. e3 {[%emt 0:00:06]} Bf5 {[%emt 0:00:36]} 5. f3 {[%emt 0:00:03]} e6 {[%emt 0:00:42]} 6. g4 {[%emt 0:00:05]} Bg6 {[%emt 0:00:06]} 7. h4 {[%emt 0:00:03]} h5 {[%emt 0:01:19]} 8. g5 {[%emt 0:00:02]} Nfd7 {[%emt 0:00:44]} 9. e4 {[%emt 0:00:55]} dxe4 {[%emt 0:03:08]} 10. fxe4 {[%emt 0:00:11]} Nc6 {[%emt 0:01:27]} 11. d5 {[%emt 0:01:05]} exd5 {[%emt 0:03:52]} 12. Nxd5 {[%emt 0:00:26]} Nce5 {[%emt 0:02:14]} 13. Be2 {[%emt 0:09:59]} c6 {[%emt 0:05:29]} 14. Nc3 {[%emt 0:01:09]} Bb4 {[%emt 0:00:34]} 15. Qd4 {[%emt 0:00:38]} Bc5 {[%emt 0:01:00]} 16. Qd2 {[%emt 0:01:38]} Bb4 {[%emt 0:02:54]} 17. O-O-O {[%emt 0:01:00]} Qa5 {[%emt 0:04:21]} 18. Rh3 {[%emt 0:01:35]} Bxc3 {[%emt 0:02:29]} 19. Qxc3 {[%emt 0:01:29]} Qxc3 {[%emt 0:01:30]} 20. Rxc3 {[%emt 0:00:00]} Ng4 {[%emt 0:01:18]} 21. e5 {[%emt 0:10:48]} O-O-O {[%emt 0:06:01]} 22. e6 {[%emt 0:01:08]} Nb8 {[%emt 0:05:42]} 23. Rxd8+ {[%emt 1:09:33]} Rxd8 {[%emt 0:00:19]} 24. e7 {[%emt 0:00:00]} Re8 {[%emt 0:01:35]} 25. Bd6 {[%emt 0:00:00]} Nf2 {[%emt 0:03:13]} 26. Bb4 {[%emt 0:00:00]} Ne4 {[%emt 0:00:46]} 27. Re3 {[%emt 0:00:00]} c5 {[%emt 0:01:17]} 28. Ba3 {[%emt 0:00:00]} b5 {[%emt 0:01:34]} 29. Bf3 {[%emt 0:00:00]} Rxe7 {[%emt 0:02:26]} 30. Bxc5 {[%emt 0:00:00]} Rc7 {[%emt 0:03:13]} 31. Bxe4 {[%emt 0:00:00]} Bxe4 {[%emt 0:00:46]} 32. Rxe4 {[%emt 0:04:30]} Rxc5 {[%emt 0:00:14]} 33. Re8+ {[%emt 0:00:30]} Kb7 {[%emt 0:00:39]} 34. Nf3 {[%emt 0:00:00]} Rf5 {[%emt 0:00:36]} 35. Ne5 {[%emt 0:00:00]} Nc6 {[%emt 0:00:55]} 36. Nd3 {[%emt 0:00:00]} Nd4 {[%emt 0:02:19]} 37. Re4 {[%emt 0:00:00]} Ne6 {[%emt 0:01:17]} 38. g6 {[%emt 0:00:00]} Nd8 {[%emt 0:01:12]} 39. gxf7 {[%emt 0:00:00]} Nxf7 {[%emt 0:00:48]} 40. Re7+ {[%emt 0:00:00]} Kb6 {[%emt 0:03:46]} 41. Re6+ {[%emt 0:00:00]} Kb7 {[%emt 0:30:14]} 42. Rg6 {[%emt 0:00:00]} a5 {[%emt 0:02:45]} 43. Rxg7 {[%emt 0:00:00]} Kc6 {[%emt 0:00:07]} 44. Rxf7 {[%emt 0:00:00]} 1-0

[Event "Niedersachsen-ch B 2024"]
[Site "Verden Aller"]
[Date "2024.01.05"]
[Round "4.5"]
[White "Sanchez Tapia, Luis G."]
[Black "Goes, Carsten"]
[Result "0-1"]
[ECO "D07"]
[WhiteElo "1576"]
[BlackElo "1676"]
[Annotator "NA RC"]
[PlyCount "92"]
[EventDate "2024.01.01"]
[EventType "swiss"]
[EventCountry "GER"]
[SourceTitle "playchess.com"]
[Source "ChessBase"]
[SourceQuality "1"]
[TimeControl "40/5400+30:1800+30"]

1. d4 {[%emt 0:00:03]} d5 {[%emt 0:00:08]} 2. c4 {[%emt 0:00:10]} Nc6 {[%emt 0:00:37]} 3. Nf3 {[%emt 0:02:04]} Bg4 {[%emt 0:01:03]} 4. e3 {[%emt 0:01:20]} e6 {[%emt 0:04:21]} 5. cxd5 {[%emt 0:04:16]} exd5 {[%emt 0:04:01]} 6. Nc3 {[%emt 0:02:02]} Nf6 {[%emt 0:00:12]} 7. Bd3 {[%emt 0:02:28]} Bd6 {[%emt 0:01:37]} 8. h3 {[%emt 0:03:13]} Bh5 {[%emt 0:00:24]} 9. O-O {[%emt 0:04:06]} O-O {[%emt 0:03:01]} 10. a3 {[%emt 0:01:35]} a6 {[%emt 0:04:01]} 11. b4 {[%emt 0:01:14]} Ne7 {[%emt 0:07:23]} 12. Bd2 {[%emt 0:06:29]} c6 {[%emt 0:00:56]} 13. Qe2 {[%emt 0:04:30]} Bc7 {[%emt 0:05:47]} 14. Rfc1 {[%emt 0:03:36]} Re8 {[%emt 0:06:10]} 15. a4 {[%emt 0:03:17]} Qd6 {[%emt 0:03:29]} 16. Rab1 {[%emt 0:00:26]} Bg6 {[%emt 0:17:21]} 17. Bxg6 {[%emt 0:09:23]} Nxg6 {[%emt 0:00:14]} 18. Qd3 {[%emt 0:01:15]} Ne4 {[%emt 0:02:17]} 19. b5 {[%emt 0:02:19]} axb5 {[%emt 0:02:35]} 20. axb5 {[%emt 0:02:06]} Qf6 {[%emt 0:04:28]} 21. bxc6 {[%emt 0:08:04]} Nh4 {[%emt 0:06:11]} 22. Qe2 {[%emt 0:18:08]} Nxf3+ {[%emt 0:02:14]} 23. gxf3 {[%emt 0:01:38]} Nxd2 {[%emt 0:01:43]} 24. Qxd2 {[%emt 0:00:41]} bxc6 {[%emt 0:01:00]} 25. Qd1 {[%emt 0:06:37]} Qh4 {[%emt 0:04:53]} 26. Nxd5 {[%emt 0:00:41]} Qg5+ {[%emt 0:00:10]} 27. Kf1 {[%emt 0:01:00]} Qxd5 {[%emt 0:00:14]} 28. Rc5 {[%emt 0:00:19]} Qd6 {[%emt 0:00:57]} 29. f4 {[%emt 0:00:50]} Qh6 {[%emt 0:02:14]} 30. Rh5 {[%emt 0:01:57]} Qe6 {[%emt 0:00:23]} 31. Qc2 {[%emt 0:00:54]} g6 {[%emt 0:00:38]} 32. Rc5 {[%emt 0:01:12]} Qxh3+ {[%emt 0:00:36]} 33. Kg1 {[%emt 0:01:10]} Qg4+ {[%emt 0:01:58]} 34. Kh1 {[%emt 0:01:34]} Qf3+ {[%emt 0:01:41]} 35. Kg1 {[%emt 0:00:17]} Bxf4 {[%emt 0:02:07]} 36. Rxc6 {[%emt 0:05:13]} Qg4+ {[%emt 0:03:28]} 37. Kf1 {[%emt 0:00:37]} Qh3+ {[%emt 0:00:38]} 38. Kg1 {[%emt 0:01:36]} Bh2+ {[%emt 0:01:36]} 39. Kh1 {[%emt 0:00:03]} Bf4+ {[%emt 0:01:44]} 40. Kg1 {[%emt 0:00:06]} Qh2+ {[%emt 0:00:45]} 41. Kf1 {[%emt 0:30:07]} Qh3+ {[%emt 0:32:29]} 42. Kg1 {[%emt 0:00:49]} Bxe3 {[%emt 0:02:34]} 43. fxe3 {[%emt 0:00:00]} Rxe3 {[%emt 0:00:00]} 44. Qh2 {[%emt 0:00:00]} Qg4+ {[%emt 0:00:00]} 45. Kf1 {[%emt 0:00:00]} Rf3+ {[%emt 0:00:00]} 46. Ke1 {[%emt 0:00:00]} Qe4+ {[%emt 0:00:00]} 0-1

[Event "Niedersachsen-ch B 2024"]
[Site "Verden Aller"]
[Date "2024.01.05"]
[Round "4.6"]
[White "Schoettker, Jochen"]
[Black "Fels, Mattis"]
[Result "1-0"]
[ECO "A00"]
[WhiteElo "1875"]
[BlackElo "1572"]
[Annotator "NA RC"]
[PlyCount "97"]
[EventDate "2024.01.01"]
[EventType "swiss"]
[EventCountry "GER"]
[SourceTitle "playchess.com"]
[Source "ChessBase"]
[SourceQuality "1"]
[TimeControl "40/5400+30:1800+30"]

1. b4 {[%emt 0:00:08]} d5 {[%emt 0:01:15]} 2. Bb2 {[%emt 0:00:10]} Bf5 {[%emt 0:00:33]} 3. e3 {[%emt 0:00:18]} Nf6 {[%emt 0:00:14]} 4. c4 {[%emt 0:00:16]} e6 {[%emt 0:00:18]} 5. a3 {[%emt 0:00:10]} Bd6 {[%emt 0:01:27]} 6. Nf3 {[%emt 0:00:18]} Nbd7 {[%emt 0:00:35]} 7. c5 {[%emt 0:01:27]} Be7 {[%emt 0:00:14]} 8. Be2 {[%emt 0:00:11]} O-O {[%emt 0:00:13]} 9. h3 {[%emt 0:00:24]} a5 {[%emt 0:00:29]} 10. d3 {[%emt 0:02:49]} axb4 {[%emt 0:01:42]} 11. axb4 {[%emt 0:00:03]} Rxa1 {[%emt 0:01:34]} 12. Bxa1 {[%emt 0:00:03]} c6 {[%emt 0:00:23]} 13. g4 {[%emt 0:01:46]} Bg6 {[%emt 0:00:21]} 14. g5 {[%emt 0:00:35]} Ne8 {[%emt 0:01:10]} 15. h4 {[%emt 0:00:19]} b6 {[%emt 0:00:44]} 16. Nd4 {[%emt 0:01:48]} Qc7 {[%emt 0:02:05]} 17. Qa4 {[%emt 0:09:09]} Ne5 {[%emt 0:02:26]} 18. Qc2 {[%emt 0:01:46]} bxc5 {[%emt 0:03:33]} 19. bxc5 {[%emt 0:00:25]} Qa5+ {[%emt 0:00:51]} 20. Bc3 {[%emt 0:00:09]} Qxc5 {[%emt 0:00:16]} 21. Nd2 {[%emt 0:00:07]} Nd6 {[%emt 0:02:49]} 22. h5 {[%emt 0:01:36]} Bf5 {[%emt 0:02:57]} 23. Nxf5 {[%emt 0:00:41]} Nxf5 {[%emt 0:00:39]} 24. d4 {[%emt 0:00:16]} Qb6 {[%emt 0:03:44]} 25. dxe5 {[%emt 0:02:25]} Bxg5 {[%emt 0:00:26]} 26. Nf3 {[%emt 0:06:39]} Be7 {[%emt 0:01:35]} 27. Kd2 {[%emt 0:02:15]} Rb8 {[%emt 1:11:27]} 28. Bd3 {[%emt 0:04:42]} Bb4 {[%emt 0:00:00]} 29. Rb1 {[%emt 0:01:24]} Qa5 {[%emt 0:00:00]} 30. Bxb4 {[%emt 0:05:04]} Rxb4 {[%emt 0:00:00]} 31. Rxb4 {[%emt 0:00:07]} Qxb4+ {[%emt 0:00:00]} 32. Qc3 {[%emt 0:00:02]} Qa4 {[%emt 0:00:00]} 33. Bxf5 {[%emt 0:06:58]} exf5 {[%emt 0:00:00]} 34. Nd4 {[%emt 0:00:15]} Qa2+ {[%emt 0:00:00]} 35. Qc2 {[%emt 0:00:30]} Qa5+ {[%emt 0:00:00]} 36. Ke2 {[%emt 0:00:54]} Qa6+ {[%emt 0:00:00]} 37. Kf3 {[%emt 0:00:44]} Qf1 {[%emt 0:00:00]} 38. Qxf5 {[%emt 0:03:01]} Qd1+ {[%emt 0:00:00]} 39. Kg2 {[%emt 0:00:05]} g6 {[%emt 0:00:00]} 40. hxg6 {[%emt 0:00:26]} hxg6 {[%emt 0:00:00]} 41. Qc8+ {[%emt 0:30:39]} Kg7 {[%emt 0:00:00]} 42. Nxc6 {[%emt 0:00:28]} Qa4 {[%emt 0:00:00]} 43. Nd4 {[%emt 0:00:56]} Qd1 {[%emt 0:00:00]} 44. Qd7 {[%emt 0:00:39]} Kh6 {[%emt 0:00:00]} 45. Nf3 {[%emt 0:01:05]} Qd3 {[%emt 0:00:00]} 46. Qxf7 {[%emt 0:01:04]} Qb3 {[%emt 0:00:00]} 47. Qf8+ {[%emt 0:01:25]} Kh5 {[%emt 0:00:00]} 48. Qh8+ {[%emt 0:00:03]} Kg4 {[%emt 0:00:00]} 49. Qh3# {[%emt 0:00:33]} 1-0

[Event "Niedersachsen-ch B 2024"]
[Site "Verden Aller"]
[Date "2024.01.05"]
[Round "4.7"]
[White "Nguyen, Laurentius"]
[Black "Kraeuter, Paavo Alexander"]
[Result "1/2-1/2"]
[ECO "C01"]
[WhiteElo "1546"]
[BlackElo "1832"]
[Annotator "NA RC"]
[PlyCount "105"]
[EventDate "2024.01.01"]
[EventType "swiss"]
[EventCountry "GER"]
[SourceTitle "playchess.com"]
[Source "ChessBase"]
[SourceQuality "1"]
[TimeControl "40/5400+30:1800+30"]

1. e4 {[%emt 0:00:03]} e6 {[%emt 0:00:04]} 2. d4 {[%emt 0:00:02]} d5 {[%emt 0:00:04]} 3. exd5 {[%emt 0:00:17]} exd5 {[%emt 0:00:07]} 4. Nf3 {[%emt 0:00:04]} Nf6 {[%emt 0:00:04]} 5. h3 {[%emt 0:00:05]} Bd6 {[%emt 0:00:44]} 6. Bd3 {[%emt 0:00:43]} O-O {[%emt 0:00:08]} 7. O-O {[%emt 0:00:05]} Re8 {[%emt 0:01:05]} 8. Re1 {[%emt 0:00:20]} Rxe1+ {[%emt 0:00:37]} 9. Qxe1 {[%emt 0:00:22]} h6 {[%emt 0:00:05]} 10. c3 {[%emt 0:00:36]} Nbd7 {[%emt 0:04:52]} 11. Be3 {[%emt 0:01:38]} Ne4 {[%emt 0:01:22]} 12. Nbd2 {[%emt 0:01:31]} f5 {[%emt 0:00:35]} 13. Nf1 {[%emt 0:03:07]} c6 {[%emt 0:10:45]} 14. h4 {[%emt 0:06:22]} Ndf6 {[%emt 0:05:35]} 15. Ne5 {[%emt 0:02:26]} Ne8 {[%emt 0:07:16]} 16. Qd1 {[%emt 0:06:08]} Qxh4 {[%emt 1:05:07]} 17. Ng6 {[%emt 0:11:35]} Qf6 {[%emt 0:00:00]} 18. Qh5 {[%emt 0:00:35]} Kh7 {[%emt 0:00:00]} 19. Nh4 {[%emt 0:02:35]} Be6 {[%emt 0:00:00]} 20. f3 {[%emt 0:00:53]} Ng3 {[%emt 0:00:00]} 21. Nxg3 {[%emt 0:01:52]} Bxg3 {[%emt 0:00:00]} 22. Nxf5 {[%emt 0:18:22]} Bxf5 {[%emt 0:00:00]} 23. Qxf5+ {[%emt 0:04:32]} Qxf5 {[%emt 0:00:00]} 24. Bxf5+ {[%emt 0:00:05]} g6 {[%emt 0:00:00]} 25. Bd3 {[%emt 0:02:10]} Nd6 {[%emt 0:00:00]} 26. Bf2 {[%emt 0:09:39]} Bf4 {[%emt 0:00:00]} 27. g3 {[%emt 0:04:28]} Bg5 {[%emt 0:00:00]} 28. Re1 {[%emt 0:02:03]} Re8 {[%emt 0:00:00]} 29. f4 {[%emt 0:01:39]} Rxe1+ {[%emt 0:00:00]} 30. Bxe1 {[%emt 0:00:05]} Bd8 {[%emt 0:00:00]} 31. Kf2 {[%emt 0:02:41]} Kg7 {[%emt 0:00:00]} 32. a4 {[%emt 0:03:31]} a6 {[%emt 0:00:00]} 33. b4 {[%emt 0:01:24]} b5 {[%emt 0:00:00]} 34. a5 {[%emt 0:00:32]} h5 {[%emt 0:00:00]} 35. Ke3 {[%emt 0:05:22]} Ne8 {[%emt 0:00:00]} 36. Bf1 {[%emt 0:00:54]} Nf6 {[%emt 0:00:00]} 37. Bh3 {[%emt 0:00:58]} Ng4+ {[%emt 0:00:24]} 38. Kf3 {[%emt 0:01:14]} Nh2+ {[%emt 0:03:05]} 39. Ke2 {[%emt 0:04:26]} Ng4 {[%emt 0:00:16]} 40. Bf2 {[%emt 0:02:01]} Kf6 {[%emt 0:00:44]} 41. Bg1 {[%emt 0:08:41]} Kf5 {[%emt 0:00:19]} 42. Kf3 {[%emt 0:05:10]} g5 {[%emt 0:00:40]} 43. Be3 {[%emt 0:02:06]} gxf4 {[%emt 0:02:39]} 44. Bxf4 {[%emt 0:05:57]} Be7 {[%emt 0:02:08]} 45. Be5 {[%emt 0:02:20]} Bg5 {[%emt 0:00:53]} 46. Bf4 {[%emt 0:00:09]} Be7 {[%emt 0:00:13]} 47. Ke2 {[%emt 0:03:42]} Ke4 {[%emt 0:11:54]} 48. Bg2+ {[%emt 0:00:17]} Kf5 {[%emt 0:00:04]} 49. Kd2 {[%emt 0:03:50]} Nf2 {[%emt 0:03:41]} 50. Ke3 {[%emt 0:02:24]} Ng4+ {[%emt 0:03:13]} 51. Kf3 {[%emt 0:00:53]} Nf6 {[%emt 0:02:17]} 52. Bh3+ {[%emt 0:00:34]} Ng4 {[%emt 0:15:30]} 53. Bf1 {[%emt 0:03:32]} 1/2-1/2

[Event "Niedersachsen-ch B 2024"]
[Site "Verden Aller"]
[Date "2024.01.05"]
[Round "4.8"]
[White "Woellermann, Ludger"]
[Black "ter Stal, Esther"]
[Result "1-0"]
[ECO "A05"]
[WhiteElo "1829"]
[BlackElo "1486"]
[Annotator "NA RC"]
[PlyCount "97"]
[EventDate "2024.01.01"]
[EventType "swiss"]
[EventCountry "GER"]
[SourceTitle "playchess.com"]
[Source "ChessBase"]
[SourceQuality "1"]
[TimeControl "40/5400+30:1800+30"]

1. Nf3 {[%emt 1:31:00]} Nf6 {[%emt 0:00:50]} 2. b3 {[%emt 0:00:36]} b6 {[%emt 0:00:38]} 3. g3 {[%emt 1:31:13]} Bb7 {[%emt 0:00:36]} 4. Bg2 {[%emt 0:00:21]} c5 {[%emt 0:02:50]} 5. Bb2 {[%emt 1:30:34]} e6 {[%emt 0:00:40]} 6. O-O {[%emt 0:01:52]} d5 {[%emt 1:27:56]} 7. d3 {[%emt 0:03:48]} Nbd7 {[%emt 0:02:55]} 8. Nbd2 {[%emt 0:00:49]} Bd6 {[%emt 0:02:00]} 9. Re1 {[%emt 0:01:15]} Qc7 {[%emt 0:02:32]} 10. e4 {[%emt 0:02:26]} O-O {[%emt 0:02:39]} 11. e5 {[%emt 0:01:17]} Nxe5 {[%emt 0:01:15]} 12. Bxe5 {[%emt 0:01:37]} Bxe5 {[%emt 0:02:16]} 13. Nxe5 {[%emt 1:21:08]} Rfd8 {[%emt 0:02:37]} 14. Ng4 {[%emt 0:08:10]} Qe7 {[%emt 0:04:13]} 15. Nxf6+ {[%emt 1:11:37]} Qxf6 {[%emt 1:10:57]} 16. Nf1 {[%emt 0:00:00]} Rac8 {[%emt 0:00:00]} 17. Qe2 {[%emt 0:01:00]} Rc7 {[%emt 0:00:00]} 18. Qe5 {[%emt 0:00:00]} Qe7 {[%emt 0:00:00]} 19. c4 {[%emt 0:00:00]} Re8 {[%emt 0:00:00]} 20. cxd5 {[%emt 0:00:00]} Rd7 {[%emt 0:00:00]} 21. dxe6 {[%emt 0:03:00]} fxe6 {[%emt 0:00:00]} 22. Bxb7 {[%emt 0:00:00]} Rxb7 {[%emt 0:00:00]} 23. Rad1 {[%emt 0:00:00]} Qf7 {[%emt 0:04:00]} 24. Nd2 {[%emt 0:00:00]} Rd7 {[%emt 0:00:00]} 25. Nc4 {[%emt 0:00:00]} Rd5 {[%emt 0:00:00]} 26. Qe2 {[%emt 0:00:00]} Kh8 {[%emt 0:00:00]} 27. Nd2 {[%emt 0:00:00]} Qf5 {[%emt 0:00:00]} 28. Ne4 {[%emt 0:00:00]} Qh3 {[%emt 0:00:00]} 29. Qf1 {[%emt 0:00:00]} Qg4 {[%emt 0:00:00]} 30. h3 {[%emt 0:00:00]} Qf3 {[%emt 0:00:00]} 31. Qg2 {[%emt 0:00:00]} Qf5 {[%emt 0:00:00]} 32. Re3 {[%emt 0:08:30]} Red8 {[%emt 0:08:30]} 33. Kh2 {[%emt 0:00:00]} Rf8 {[%emt 0:09:00]} 34. h4 {[%emt 0:00:00]} h6 {[%emt 0:00:00]} 35. Rd2 {[%emt 0:00:00]} g6 {[%emt 0:00:00]} 36. Qh3 {[%emt 0:00:00]} Qf7 {[%emt 0:00:00]} 37. Qg4 {[%emt 0:00:00]} Kg7 {[%emt 0:01:09]} 38. Kg2 {[%emt 0:00:00]} Rf5 {[%emt 0:03:38]} 39. f4 {[%emt 0:00:00]} Qd7 {[%emt 0:01:03]} 40. Nf2 {[%emt 0:00:27]} Qd6 {[%emt 0:04:57]} 41. Rde2 {[%emt 0:42:33]} Re8 {[%emt 0:02:13]} 42. Re5 {[%emt 0:00:00]} Rf6 {[%emt 0:03:57]} 43. Qf3 {[%emt 0:00:00]} Qd4 {[%emt 0:02:35]} 44. Ng4 {[%emt 0:00:00]} Rf7 {[%emt 0:01:49]} 45. Rxe6 {[%emt 0:00:00]} Rxe6 {[%emt 0:00:38]} 46. Rxe6 {[%emt 0:00:00]} Rd7 {[%emt 0:00:37]} 47. Ne5 {[%emt 0:00:00]} Rd6 {[%emt 0:02:16]} 48. Qb7+ {[%emt 0:00:00]} Kh8 {[%emt 0:00:50]} 49. Re8# {[%emt 0:00:00]} 1-0

[Event "Niedersachsen-ch B 2024"]
[Site "Verden Aller"]
[Date "2024.01.05"]
[Round "4.9"]
[White "Kesselhut, Pascal"]
[Black "Schlaetker, Christine"]
[Result "1-0"]
[ECO "C29"]
[WhiteElo "1425"]
[BlackElo "1745"]
[Annotator "NA RC"]
[PlyCount "37"]
[EventDate "2024.01.01"]
[EventType "swiss"]
[EventCountry "GER"]
[SourceTitle "playchess.com"]
[Source "ChessBase"]
[SourceQuality "1"]
[TimeControl "40/5400+30:1800+30"]

1. e4 {[%emt 0:00:01]} e5 {[%emt 0:00:08]} 2. Nc3 {[%emt 0:00:07]} Nf6 {[%emt 0:00:12]} 3. f4 {[%emt 0:00:23]} d5 {[%emt 0:01:54]} 4. fxe5 {[%emt 0:00:36]} Bg4 {[%emt 0:00:53]} 5. Be2 {[%emt 0:01:32]} Bxe2 {[%emt 0:01:27]} 6. Qxe2 {[%emt 0:00:17]} Nxe4 {[%emt 0:02:01]} 7. Nxe4 {[%emt 0:03:05]} dxe4 {[%emt 0:00:52]} 8. Qxe4 {[%emt 0:00:13]} Nc6 {[%emt 0:01:38]} 9. Nf3 {[%emt 0:01:03]} Bc5 {[%emt 0:03:27]} 10. c3 {[%emt 0:01:12]} Qe7 {[%emt 0:02:50]} 11. d4 {[%emt 0:01:10]} Bb6 {[%emt 0:00:02]} 12. Qg4 {[%emt 0:01:28]} f6 {[%emt 0:03:54]} 13. O-O {[%emt 0:07:39]} Nxe5 {[%emt 0:09:13]} 14. Nxe5 {[%emt 0:05:17]} fxe5 {[%emt 0:06:47]} 15. Kh1 {[%emt 0:05:06]} exd4 {[%emt 0:17:45]} 16. Bg5 {[%emt 1:09:21]} h5 {[%emt 0:01:01]} 17. Qh4 {[%emt 0:00:00]} Qd6 {[%emt 0:02:27]} 18. Qh3 {[%emt 0:00:00]} Rf8 {[%emt 0:04:23]} 19. Rae1+ {[%emt 0:00:00]} 1-0